bitfinex-derivatives/quotes_SOLF0:USTF0_20250714
["timestamp","ask_amount","ask_price","bid_price","bid_amount"]
[1752476788084,3.33,166.02,166.0,6.0223]
[1752476789283,3.33,166.02,166.01,6.0222]
[1752476790682,3.33,166.02,166.0,6.0225]
[1752476790982,6.51906626,166.01,166.0,6.0225]
[1752476791888,3.33,166.0,165.97,3.25]
[1752476792183,179.18906626,166.08,165.93,3.25]
[1752476792184,3.33,165.98,165.93,3.25]
[1752476792391,3.33,165.98,165.97,6.0234]
[1752476793983,3.33,165.98,165.97,9.2734]
[1752476794183,3.33,166.0,165.97,3.25]
[1752476794382,3.18906626,166.03,165.97,3.25]
[1752476794589,3.33,166.01,165.97,3.25]
[1752476794986,3.33,166.01,166.0,9.2722]
[1752476795489,3.33,166.02,165.97,3.25]
[1752476795689,3.33,166.01,165.97,3.25]
[1752476796084,3.33,166.01,166.0,6.0225]
[1752476796287,3.33,166.01,166.0,9.2725]
[1752476796484,3.33,166.01,166.0,6.0225]
[1752476796784,3.33,166.0,165.95,3.25]
[1752476797090,3.33,165.98,165.95,3.25]
[1752476797389,3.18906626,165.99,165.98,6.0233]
[1752476797589,3.18906626,165.99,165.95,3.25]
[1752476797792,3.33,165.98,165.97,6.0236]
[1752476799491,3.33,165.98,165.96,6.0239]
[1752476799891,3.33,165.98,165.93,3.25]
[1752476800292,3.33,165.98,165.94,3.25]
[1752476800491,3.33,165.98,165.95,3.25]
[1752476800790,3.33,165.97,165.96,9.274]
[1752476800989,3.33,165.97,165.96,6.024]
[1752476802084,3.33,165.97,165.96,9.274]
[1752476803796,5.32637264,165.99,165.97,6.0234]
[1752476803998,3.33,165.98,165.97,9.2734]
[1752476804391,3.33,166.02,166.0,6.0225]
[1752476805693,3.33,166.02,165.99,6.0228]
[1752476806592,3.33,166.02,166.0,6.0225]
[1752476806997,3.33,166.02,166.01,6.0222]
[1752476807197,3.33,166.02,166.01,9.2722]
[1752476807999,3.33,166.02,166.01,6.0222]
[1752476810094,3.66,166.04,166.02,6.0218]
[1752476811201,3.66,166.04,166.01,9.2721]
[1752476812203,3.66,166.04,166.02,6.0217]
[1752476812396,3.66,166.04,166.02,9.2717]
[1752476812897,3.66,166.04,166.01,6.0221]
[1752476813502,3.66,166.04,166.02,9.2718]
[1752476813897,3.66,166.04,166.02,3.25]
[1752476814099,520.42,166.05,165.98,3.25]
[1752476814603,6.0202,166.07,166.04,9.2711]
[1752476814801,6.0202,166.07,166.04,6.0211]
[1752476815003,181.32637264,166.08,166.02,3.25]
[1752476815296,6.0205,166.06,166.03,6.0212]
[1752476815496,3.66,166.05,166.03,6.0212]
[1752476820805,5.32637264,166.0,165.95,3.25]
[1752476821106,3.66,165.96,165.9,3.25]
[1752476821307,3.66,165.94,165.91,6.0255]
[1752476821509,3.66,165.94,165.91,9.2755]
[1752476822004,3.66,165.92,165.88,3.25]
[1752476822505,3.19564596,165.93,165.9,6.0261]
[1752476822706,3.66,165.92,165.88,3.25]
[1752476822902,3.66,165.92,165.89,3.25]
[1752476823105,3.66,165.91,165.9,6.0259]
[1752476823502,3.66,165.91,165.9,9.2759]
[1752476823704,3.66,165.91,165.89,6.0264]
[1752476823908,3.66,165.93,165.84,3.25]
[1752476824096,5.32994621,165.93,165.84,3.25]
[1752476824300,3.66,165.92,165.9,6.0261]
[1752476824501,3.66,165.91,165.9,9.2761]
[1752476824704,3.66,165.91,165.9,6.0261]
[1752476825007,3.66,165.9,165.89,9.2764]
[1752476825209,3.66,165.9,165.83,5.03437734]
[1752476825408,3.66,165.9,165.84,3.25]
[1752476825609,3.66,165.9,165.89,6.0265]
[1752476825809,3.66,165.9,165.89,9.2765]
[1752476830013,3.66,165.9,165.89,6.0265]
[1752476830914,3.66,165.9,165.88,9.2767]
[1752476831113,3.66,165.9,165.87,3.25]
[1752476831515,3.66,165.9,165.89,6.0265]
[1752476831814,3.66,165.9,165.89,9.2765]
[1752476832416,3.66,165.9,165.89,6.0265]
[1752476832616,3.66,165.9,165.89,9.2765]
[1752476833313,175.24,165.97,165.92,6.0253]
[1752476833513,5.32994621,165.94,165.92,6.0253]
[1752476833817,5.03337716,165.99,165.93,5.32994621]
[1752476834019,8.69337716,166.01,165.94,3.25]
[1752476834313,8.69337716,166.01,165.96,3.25]
[1752476834517,3.66,166.0,165.93,5.32994621]
[1752476834718,3.66,166.0,165.94,3.25]
[1752476834917,3.66,166.0,165.98,6.023]
[1752476835119,3.66,166.0,165.96,3.25]
[1752476835320,3.66,166.0,165.94,3.25]
[1752476835523,3.66,166.0,165.98,6.023]
[1752476835716,3.66,166.0,165.96,3.25]
[1752476836021,3.66,166.02,165.93,5.32994621]
[1752476836217,3.66,166.02,165.97,5.32994621]
[1752476836523,3.66,166.02,166.01,6.0222]
[1752476837117,3.66,166.02,166.01,9.2722]
[1752476837610,175.24,166.05,165.97,5.32994621]
[1752476837812,178.9,166.05,165.97,5.32994621]
[1752476838119,3.66,166.04,165.98,3.25]
[1752476839618,175.24,166.05,165.99,5.32994621]
[1752476839815,175.24,166.05,166.0,3.25]
[1752476840018,178.82,166.05,166.0,3.25]
[1752476840416,3.58,166.04,166.0,3.25]
[1752476840615,178.82,166.05,166.0,3.25]
[1752476841021,3.58,166.04,166.0,3.25]
[1752476841222,3.58,166.04,165.99,3.25]
[1752476841411,3.58,166.04,165.98,3.25]
[1752476843324,3.58,166.04,166.03,6.0215]
[1752476843520,3.58,166.04,166.03,9.2715]
[1752476843722,3.58,166.04,166.03,6.0215]
[1752476845118,3.58,166.04,165.99,3.25]
[1752476845622,3.58,166.04,166.01,6.0219]
[1752476846320,3.58,166.02,166.0,6.0225]
[1752476846522,3.58,166.02,165.97,3.25]
[1752476846723,3.58,166.02,166.01,6.0222]
[1752476847020,3.58,166.02,165.98,3.25]
[1752476848721,3.58,166.02,166.0,6.0222]
[1752476849830,3.58,166.02,166.01,6.0222]
[1752476850226,3.58,166.02,166.0,6.0224]
[1752476850423,3.58,166.02,165.98,3.25]
[1752476850622,3.58,166.02,165.99,3.25]
[1752476850823,3.58,166.02,166.0,6.0223]
[1752476857730,3.58,166.02,165.99,3.25]
[1752476858830,3.19393435,166.03,166.0,6.0223]
[1752476859032,3.58,166.02,166.0,9.2723]
[1752476859234,3.19393435,166.03,166.0,3.25]
[1752476859434,3.58,166.01,166.0,3.25]
[1752476859932,3.58,166.01,166.0,9.2725]
[1752476860335,3.58,166.01,166.0,6.0225]
[1752476861336,3.58,166.01,166.0,9.2725]
[1752476864537,3.58,166.01,165.95,3.19393435]
[1752476864538,3.19393435,166.06,166.03,6.0214]
[1752476864840,3.19393435,166.07,166.03,3.25]
[1752476865038,520.46,166.09,165.99,3.19393435]
[1752476865039,3.58,166.05,166.04,9.2711]
[1752476867341,3.58,166.05,166.03,6.0213]
[1752476867638,3.58,166.04,166.0,3.25]
[1752476867835,3.58,166.02,166.0,6.0225]
[1752476868137,6.77238094,166.01,166.0,6.0225]
[1752476870441,3.58,166.01,166.0,6.0225]
[1752476871439,6.54238094,166.03,166.02,6.0218]
[1752476871639,3.35,166.03,166.02,6.0218]
[1752476871839,3.35,166.03,166.02,9.2618]
[1752476872541,3.35,166.06,165.98,3.24]
[1752476873244,3.35,166.06,165.97,3.19238094]
[1752476873440,3.35,166.06,166.0,3.24]
[1752476873639,3.35,166.06,166.05,6.0207]
[1752476876345,3.35,166.06,166.05,9.2607]
[1752476877139,3.35,166.06,166.05,6.0207]
[1752476877742,3.35,166.06,166.05,9.2607]
[1752476879746,177.85238094,166.08,166.07,6.02]
[1752476879952,181.20238094,166.08,166.07,6.02]
[1752476880449,3.35,166.07,166.02,3.24]
[1752476880748,3.35,166.07,166.0,3.24]
[1752476881245,174.58,166.08,166.02,3.24]
[1752476881450,6.0187,166.11,166.08,6.0195]
[1752476881640,3.35,166.1,166.08,6.0195]
[1752476882247,3.35,166.1,166.09,6.0193]
[1752476883546,3.35,166.1,166.08,6.0195]
[1752476884852,3.35,166.1,166.09,6.0193]
[1752476885550,3.35,166.1,166.09,9.2593]
[1752476887546,177.93,166.11,166.1,6.0189]
[1752476887750,177.93,166.11,166.1,9.2589]
[1752476888657,174.58,166.11,166.1,9.2589]
[1752476888855,177.93,166.11,166.1,9.2589]
[1752476890346,174.58,166.11,166.1,9.2589]
[1752476890547,177.93,166.11,166.1,9.2589]
[1752476891154,3.35,166.11,166.1,6.0189]
[1752476892248,3.35,166.11,166.08,3.25]
[1752476892449,3.35,166.11,166.04,3.19238094]
[1752476892652,3.19238094,166.12,166.04,3.19238094]
[1752476892653,174.52,166.1,166.07,3.25]
[1752476892856,3.35,166.09,166.08,3.25]
[1752476893658,3.35,166.09,166.08,6.0196]
[1752476894559,3.35,166.09,166.08,9.2696]
[1752476895564,174.52,166.1,166.09,6.0193]
[1752476895760,174.52,166.1,166.09,9.2693]
[1752476895964,3.35,166.12,166.09,3.25]
[1752476896172,3.35,166.12,166.1,3.25]
[1752476896466,174.5,166.13,166.12,6.0182]
[1752476897062,177.85,166.13,166.12,6.0182]
[1752476897965,177.85,166.13,166.09,3.25]
[1752476897966,3.35,166.12,166.09,3.25]
[1752476898166,6.54238094,166.12,166.09,3.25]
[1752476898365,3.35,166.11,166.09,3.25]
[1752476898561,3.35,166.11,166.06,3.25]
[1752476899158,3.35,166.11,166.1,6.0189]
[1752476900262,3.35,166.11,166.1,9.2689]
[1752476900563,178.1,166.13,166.12,9.2682]
[1752476901263,174.5,166.13,166.12,9.2682]
[1752476901769,3.6,166.15,166.14,6.0175]
[1752476902671,178.08,166.17,166.16,6.0166]
[1752476905067,3.6,166.16,166.12,3.25]
[1752476905268,3.19238094,166.16,166.12,3.25]
[1752476905470,3.6,166.15,166.1,3.25]
[1752476905767,3.6,166.15,166.14,9.2675]
[1752476906863,178.08,166.17,166.16,6.0167]
[1752476907166,178.08,166.17,166.14,3.25]
[1752476907466,3.6,166.16,166.15,6.017]
[1752476907864,3.6,166.16,166.14,6.0174]
[1752476908067,6.79238094,166.16,166.14,6.0174]
[1752476908265,3.6,166.15,166.14,6.0174]
[1752476908774,3.6,166.15,166.08,3.25]
[1752476908966,3.6,166.13,166.08,3.25]
[1752476909168,3.6,166.13,166.12,6.0182]
[1752476909363,3.6,166.13,166.12,9.2682]
[1752476911768,174.44,166.14,166.13,6.0178]
[1752476911972,178.04,166.14,166.13,9.2678]
[1752476912276,178.04,166.14,166.13,6.0178]
[1752476913177,174.44,166.14,166.13,9.2678]
[1752476913771,178.04,166.14,166.13,9.2678]
[1752476915066,174.44,166.14,166.12,6.0181]
[1752476915266,3.6,166.13,166.08,3.25]
[1752476915476,174.44,166.14,166.08,3.25]
[1752476915674,3.6,166.12,166.08,3.25]
[1752476915873,3.6,166.12,166.11,9.2686]
[1752476916269,3.6,166.13,166.12,6.0182]
[1752476916472,3.6,166.13,166.12,9.2682]
[1752476917777,3.6,166.13,166.08,3.25]
[1752476917979,3.19238094,166.12,166.06,3.25]
[1752476918176,3.6,166.11,166.06,3.25]
[1752476918377,3.6,166.11,166.04,17.080324]
[1752476918378,6.79238094,166.12,166.11,6.0186]
[1752476923285,3.6,166.12,166.11,6.0186]
[1752476923486,6.79238094,166.12,166.11,6.0186]
[1752476924882,178.04,166.14,166.13,6.0178]
[1752476925083,178.04,166.14,166.13,9.2678]
[1752476925382,178.04,166.14,166.13,6.0178]
[1752476926285,178.04,166.14,166.13,9.2678]
[1752476926682,178.04,166.14,166.13,6.0178]
[1752476927683,18.08,166.33,166.13,6.0178]
[1752476927684,3.6,166.17,166.13,3.25]
[1752476928292,183.64768094,166.2,166.17,6.0162]
[1752476928487,3.6,166.19,166.17,6.0162]
[1752476929092,3.6,166.19,166.18,6.016]
[1752476929993,3.6,166.19,166.17,6.0163]
[1752476930182,3.6,166.19,166.15,3.25]
[1752476930383,3.19238094,166.18,166.11,3.19238094]
[1752476930588,3.64,166.17,166.13,3.25]
[1752476930789,3.64,166.17,166.11,3.19238094]
[1752476931092,3.64,166.17,166.16,6.0166]
[1752476931890,3.64,166.17,166.16,9.2666]
[1752476932287,178.08,166.2,166.19,6.0157]
[1752476932596,174.42,166.23,166.19,3.25]
[1752476932787,3.64,166.22,166.21,3.25]
[1752476933096,3.64,166.22,166.19,3.25]
[1752476933297,3.64,166.22,166.2,6.0153]
[1752476933798,3.64,166.22,166.19,3.25]
[1752476934194,3.64,166.22,166.21,6.0149]
[1752476934499,3.64,166.22,166.21,9.2649]
[1752476935498,3.64,166.24,166.23,6.0141]
[1752476935700,3.64,166.24,166.21,3.25]
[1752476935999,3.64,166.24,166.22,6.0143]
[1752476937897,3.64,166.24,166.21,6.0148]
[1752476938092,3.64,166.22,166.2,3.25]
[1752476938293,3.64,166.22,166.21,6.0147]
[1752476938999,3.64,166.22,166.21,9.2647]
[1752476939396,3.64,166.22,166.19,3.25]
[1752476939598,3.64,166.2,166.19,3.25]
[1752476940202,3.19238094,166.21,166.2,6.0153]
[1752476940401,6.83238094,166.21,166.2,9.2653]
[1752476941208,3.64,166.21,166.2,9.2653]
[1752476942306,3.64,166.24,166.2,3.25]
[1752476942606,6.83238094,166.24,166.2,3.25]
[1752476942998,6.83238094,166.24,166.23,6.0142]
[1752476943204,6.83238094,166.24,166.23,9.2642]
[1752476944514,6.83238094,166.24,166.23,6.0142]
[1752476945107,3.19238094,166.24,166.18,5.04891126]
[1752476945403,3.19238094,166.2,166.17,3.25]
[1752476945604,3.19238094,166.24,166.13,17.08401126]
[1752476945605,3.19238094,166.18,166.14,3.25]
[1752476945808,3.19238094,166.18,166.13,3.25]
[1752476946006,3.64,166.17,166.13,3.25]
[1752476946910,3.64,166.17,166.16,6.0167]
[1752476947311,3.64,166.17,166.16,9.2667]
[1752476948202,3.64,166.17,166.16,6.0167]
[1752476948811,3.64,166.17,166.11,3.25]
[1752476949011,3.64,166.13,166.12,3.25]
[1752476949318,3.64,166.13,166.12,9.2682]
[1752476950116,174.54,166.18,166.16,6.0165]
[1752476950319,3.19238094,166.17,166.16,6.0165]
[1752476952114,6.83238094,166.17,166.16,6.0165]
[1752476954718,3.64,166.17,166.16,9.6265]
[1752476954916,6.83238094,166.17,166.16,9.6265]
[1752476955419,6.83238094,166.17,166.16,6.0165]
[1752476956714,3.19238094,166.17,166.15,6.017]
[1752476956910,6.83238094,166.16,166.15,6.017]
[1752476957718,6.83238094,166.16,166.15,9.627]
[1752476959814,6.83238094,166.16,166.15,6.017]
[1752476960019,3.36,166.15,166.13,3.39]
[1752476960221,3.36,166.13,166.11,3.39]
[1752476960414,3.36,166.13,166.08,3.39]
[1752476961013,3.36,166.13,166.12,6.0182]
[1752476961319,3.36,166.13,166.12,9.4082]
[1752476962318,3.19238094,166.14,166.13,6.0178]
[1752476962518,6.55238094,166.14,166.13,9.4078]
[1752476966723,6.55238094,166.16,166.15,9.4069]
[1752476966921,3.36,166.2,166.15,3.39]
[1752476967515,3.36,166.2,166.19,9.4057]
[1752476971230,3.36,166.2,166.19,6.0157]
[1752476973031,3.36,166.2,166.19,9.4057]
[1752476973725,6.54624341,166.2,166.19,9.4057]
[1752476973928,3.18624341,166.2,166.19,9.4057]
[1752476974131,6.54624341,166.2,166.19,6.0157]
[1752476975243,3.36,166.19,166.17,9.406]
[1752476975429,3.36,166.19,166.17,3.39]
[1752476975636,3.36,166.18,166.12,8.23515467]
[1752476975836,6.54624341,166.18,166.17,6.0164]
[1752476977943,3.36,166.17,166.11,3.39]
[1752476978138,3.18624341,166.16,166.11,3.39]
[1752476978333,3.18624341,166.16,166.15,6.0171]
[1752476978533,3.18624341,166.16,166.15,9.4071]
[1752476978942,6.54624341,166.16,166.15,9.4071]
[1752476979537,6.0155,166.2,166.16,6.0164]
[1752476979538,3.36,166.17,166.16,6.0164]
[1752476980138,3.36,166.17,166.16,9.4064]
[1752476980338,6.54624341,166.18,166.17,9.4064]
[1752476980848,3.36,166.19,166.17,3.39]
[1752476981534,6.54624341,166.21,166.2,9.4051]
[1752476982349,180.96624341,166.23,166.22,3.39]
[1752476982542,177.60624341,166.23,166.19,3.39]
[1752476982847,3.36,166.22,166.14,3.18624341]
[1752476983046,3.36,166.22,166.21,3.39]
[1752476983748,3.36,166.22,166.21,9.4047]
[1752476984739,3.36,166.24,166.22,3.39]
[1752476985146,3.36,166.24,166.23,3.39]
[1752476985346,3.36,166.24,166.23,9.4042]
[1752476985546,523.04521986,166.26,166.24,3.39]
[1752476985740,3.36,166.25,166.24,6.0139]
[1752476986336,3.36,166.25,166.24,9.4039]
[1752476990150,6.66521986,166.26,166.25,9.5235]
[1752476990345,177.84,166.27,166.25,3.51]
[1752476990550,3.48,166.27,166.26,9.5231]
[1752476991450,3.48,166.31,166.29,3.51]
[1752476991655,3.18521986,166.34,166.29,3.51]
[1752476991851,3.48,166.33,166.29,3.51]
[1752476992053,3.18521986,166.3,166.26,3.51]
[1752476992349,3.48,166.28,166.24,3.51]
[1752476992661,3.48,166.28,166.27,9.5228]
[1752476992852,3.48,166.28,166.27,3.51]
[1752476993349,6.66521986,166.28,166.22,3.51]
[1752476993548,3.48,166.27,166.22,3.51]
[1752476993955,3.48,166.27,166.24,6.0137]
[1752476994155,3.48,166.27,166.25,3.51]
[1752476994351,3.18521986,166.28,166.25,3.51]
[1752476994558,3.48,166.27,166.26,3.51]
[1752476994854,3.48,166.27,166.26,9.58101549]
[1752476995153,3.48,166.27,166.26,6.07101549]
[1752476995359,3.48,166.27,166.26,6.06904538]
[1752476995556,3.48,166.27,166.26,9.57904538]
[1752476996259,3.48,166.27,166.26,15.59214538]
[1752476996557,3.48,166.28,166.27,9.5226]
[1752476996763,3.48,166.28,166.27,15.59164538]
[1752476997258,3.18521986,166.3,166.28,6.0122]
[1752476997453,3.48,166.3,166.29,9.5767245]
[1752476998455,3.48,166.35,166.29,6.0667245]
[1752476998661,3.48,166.41,166.35,3.51]
[1752476998856,3.48,166.38,166.36,9.5665052]
[1752476999062,3.17851082,166.39,166.37,6.0565052]
[1752476999361,3.17851082,166.39,166.27,5.04891126]
[1752476999362,3.18152524,166.38,166.33,3.51]
[1752476999562,6.66152524,166.35,166.34,6.05527813]
[1752477000063,6.66152524,166.35,166.34,6.05575385]
[1752477000556,3.48,166.33,166.32,3.51]
[1752477000859,3.48,166.33,166.32,9.5207]
[1752477001657,3.48,166.35,166.32,3.51]
[1752477002157,3.18152524,166.36,166.34,6.0099]
[1752477002361,3.48,166.35,166.29,3.51]
[1752477002756,3.48,166.35,166.34,6.0102]
[1752477003366,3.48,166.35,166.34,9.5202]
[1752477004463,3.48,166.35,166.33,6.0105]
[1752477005161,3.48,166.35,166.34,6.0102]
[1752477005869,3.48,166.35,166.33,6.0105]
[1752477006269,3.48,166.35,166.32,3.51]
[1752477006772,3.48,166.35,166.33,6.0106]
[1752477006972,3.48,166.35,166.28,3.51]
[1752477007567,3.48,166.35,166.34,6.0102]
[1752477008073,3.18152524,166.4,166.32,3.51]
[1752477008274,3.48,166.39,166.32,3.51]
[1752477008570,3.48,166.39,166.36,6.0093]
[1752477009268,3.48,166.39,166.31,3.18152524]
[1752477009571,3.48,166.4,166.36,3.51]
[1752477009872,3.48,166.39,166.38,9.5186]
[1752477010069,3.48,166.39,166.38,3.51]
[1752477010268,3.48,166.39,166.38,9.5188]
[1752477011069,3.48,166.39,166.36,3.51]
[1752477011469,3.48,166.39,166.33,3.18152524]
[1752477011470,3.18152524,166.38,166.34,3.51]
[1752477011666,3.18152524,166.38,166.36,6.0094]
[1752477012169,175.16,166.41,166.35,3.51]
[1752477012475,3.18152524,166.39,166.36,6.19131904]
[1752477012669,3.18152524,166.39,166.37,6.19131904]
[1752477012874,3.18152524,166.39,166.36,6.0095]
[1752477013075,3.48,166.38,166.37,9.70131903]
[1752477013475,3.48,166.38,166.37,6.19131903]
[1752477013768,3.48,166.38,166.37,12.20041903]
[1752477013972,3.48,166.38,166.37,6.0091]
[1752477014375,3.48,166.38,166.36,6.0094]
[1752477015277,3.48,166.37,166.36,9.5194]
[1752477015673,3.48,166.37,166.36,3.51]
[1752477016671,3.48,166.37,166.35,6.0097]
[1752477016875,3.48,166.36,166.35,9.5197]
[1752477017078,3.48,166.36,166.35,3.51]
[1752477017279,3.48,166.36,166.35,9.5193]
[1752477019376,3.53,166.37,166.36,9.3489]
[1752477019680,3.53,166.37,166.36,3.34]
[1752477020074,3.53,166.37,166.33,3.18152524]
[1752477020075,3.53,166.4,166.33,3.18152524]
[1752477020280,3.53,166.4,166.36,3.34]
[1752477020281,3.53,166.39,166.36,3.34]
[1752477020480,3.53,166.39,166.33,3.34]
[1752477020683,3.53,166.39,166.38,3.34]
[1752477021381,3.53,166.39,166.34,3.34]
[1752477021584,3.53,166.37,166.31,3.18152524]
[1752477021774,3.53,166.37,166.32,3.34]
[1752477021979,3.18152524,166.39,166.32,3.34]
[1752477022178,3.53,166.36,166.32,3.34]
[1752477022384,3.53,166.36,166.35,9.3493]
[1752477023086,3.53,166.36,166.33,3.34]
[1752477023984,6.0088,166.37,166.31,3.34]
[1752477024184,3.53,166.35,166.31,3.34]
[1752477024584,3.53,166.35,166.34,6.0095]
[1752477024785,3.53,166.35,166.34,9.3495]
[1752477025279,3.53,166.35,166.34,3.34]
[1752477025581,3.53,166.35,166.31,3.34]
[1752477025781,3.53,166.35,166.32,6.06447264]
[1752477025982,3.53,166.35,166.33,3.34]
[1752477026487,3.53,166.34,166.33,3.34]
[1752477027187,3.53,166.34,166.33,9.35]
[1752477030485,3.53,166.4,166.35,3.34]
[1752477030683,3.53,166.39,166.32,3.18152524]
[1752477030896,3.53,166.37,166.33,6.0098]
[1752477031185,3.53,166.36,166.33,6.0098]
[1752477031385,3.53,166.36,166.34,3.34]
[1752477031585,3.53,166.37,166.35,3.34]
[1752477032288,3.53,166.36,166.35,3.34]
[1752477032586,6.71152524,166.36,166.33,3.34]
[1752477032785,3.53,166.35,166.31,3.34]
[1752477033089,3.53,166.34,166.33,9.35]
[1752477033687,3.53,166.34,166.31,6.0104]
[1752477033886,3.53,166.34,166.32,3.34]
[1752477034287,3.18152524,166.36,166.32,3.34]
[1752477034485,3.53,166.33,166.32,3.34]
[1752477035084,3.53,166.33,166.32,9.3503]
[1752477035688,3.53,166.34,166.33,6.0098]
[1752477035892,3.53,166.34,166.33,9.3498]
[1752477036892,3.18152524,166.36,166.34,6.0095]
[1752477037089,3.53,166.35,166.34,9.3495]
[1752477037489,3.53,166.35,166.33,6.0099]
[1752477037689,3.53,166.34,166.33,6.0099]
[1752477038190,3.53,166.34,166.33,9.3499]
[1752477039896,3.53,166.37,166.35,3.34]
[1752477040594,9.5388,166.37,166.35,3.34]
[1752477040792,3.53,166.36,166.34,9.3496]
[1752477041196,3.53,166.36,166.35,3.34]
[1752477041694,3.53,166.36,166.34,6.0096]
[1752477041892,3.53,166.36,166.34,9.3496]
[1752477042290,6.0088,166.37,166.34,6.0096]
[1752477042593,3.53,166.35,166.34,6.0096]
[1752477042998,3.53,166.35,166.34,9.3496]
[1752477043398,3.53,166.35,166.34,3.34]
[1752477043595,3.53,166.35,166.33,6.0099]
[1752477043802,3.53,166.35,166.29,5.04891126]
[1752477043994,3.53,166.35,166.33,3.34]
[1752477044497,9.5393,166.35,166.33,3.34]
[1752477044693,3.53,166.34,166.33,3.34]
[1752477045993,3.53,166.34,166.29,5.04891126]
[1752477046198,3.18152524,166.34,166.3,3.34]
[1752477046396,3.53,166.33,166.3,3.34]
[1752477046799,6.0103,166.33,166.3,6.011]
[1752477046999,3.53,166.32,166.31,3.34]
[1752477047993,3.53,166.33,166.32,3.34]
[1752477049103,9.54,166.33,166.32,3.34]
[1752477049303,6.72277806,166.39,166.29,6.0113]
[1752477049501,3.64,166.33,166.28,3.41]
[1752477050604,3.64,166.3,166.26,8.2304365]
[1752477050904,3.64,166.31,166.26,5.04891126]
[1752477051104,3.64,166.31,166.26,3.41]
[1752477051604,3.64,166.3,166.29,3.41]
[1752477053009,3.64,166.3,166.29,9.4215]
[1752477053502,3.18152524,166.3,166.25,5.04892811]
[1752477053706,3.18152524,166.27,166.23,5.04892811]
[1752477053906,3.18152524,166.27,166.22,3.41]
[1752477053907,3.64,166.26,166.24,5.04892811]
[1752477054199,3.64,166.26,166.25,9.4226]
[1752477054406,3.64,166.26,166.25,3.41]
[1752477054701,3.64,166.25,166.22,5.04892811]
[1752477055004,3.64,166.26,166.21,8.23045335]
[1752477055504,3.64,166.26,166.25,3.41]
[1752477056204,3.64,166.26,166.24,9.4232]
[1752477056404,3.18152524,166.29,166.24,6.0132]
[1752477056606,3.64,166.25,166.24,6.0132]
[1752477057004,3.64,166.25,166.24,9.4232]
[1752477057804,3.64,166.25,166.24,3.41]
[1752477058503,3.64,166.25,166.23,3.41]
[1752477058808,3.64,166.24,166.19,5.04892811]
[1752477059003,9.19622524,166.2,166.18,5.04892811]
[1752477059213,3.64,166.19,166.18,5.04892811]
[1752477059505,3.64,166.19,166.18,8.45892811]
[1752477059698,3.64,166.19,166.18,14.47432811]
[1752477060102,3.64,166.21,166.18,11.06432811]